Cogmind - Beta 17 @@@ ROGUE MODE // 2026.06.28 @ 14:48:05 Player: nnnnsk Result: Destroyed by Striker with Plasma Lance Performance ------------- Evolutions (7) 3500 Regions Visited (16) 3200 Robots Destroyed (221) 1105 Value Destroyed (8608) 8608 Prototype IDs (30) 600 Alien Tech Used (0) 0 Bonus (7027) 7027 TOTAL SCORE: 24040 Bonus ------- Follower Combat Kills 1311 Network Hubs Disabled 200 Registered with UFD 300 Met Optimus in HQ 500 Met Zhirov 300 Met R17 at Cetus 500 Met R17 at Research 2000 Acquired SGEMP 2000 Friendly Fire -84 Cogmind --------- Core Integrity 0/1300 Matter 135/300 Energy 84/100 System Corruption 7% Temperature Cool (0) Movement Core (50) Location -3/Testing Parts ------- > --- POWER (2) -------- (None) > --- PROPULSION (5) --- (None) > --- UTILITY (11) ----- Experimental Coolant Injector Experimental Optical Array Advanced Signal Interpreter Advanced Hacking Suite Advanced Corruption Screen > --- WEAPON (3) ------- (None) > --- INVENTORY (5) ---- Advanced Target Analyzer Cooled Plasma Rifle Enhanced Force Lance SGEMP Prototype Peak State ------------ > --- POWER ------------ Light Antimatter Reactor Light Particle Reactor > --- PROPULSION ------- Flexi-carbon Leg Flexi-carbon Leg Myomer Exoskeleton > --- UTILITY ---------- Experimental Coolant Injector Large Storage Unit Structural Scanner Experimental Optical Array Advanced Signal Interpreter Core Analyzer Precision Energy Filter Centrium Medium Armor Plating Advanced Thermal Shield Advanced Hacking Suite Advanced Corruption Screen > --- WEAPON ----------- Helical Railgun Perforator > --- INVENTORY -------- Centrium Heavy Treads Centrium Heavy Treads Cooled Field Propulsion Drive Advanced Target Analyzer Improved Focal Shield Cooled Plasma Rifle Advanced Variable Charge Gun Heavy Dispersion Rifle High-powered Disruptor Cannon Enhanced Force Lance [Rating: 175] Favorites ----------- Power Heavy Ion Engine Engine Heavy Ion Engine Power Core Light Nuclear Core Reactor Light Antimatter Reactor Propulsion Improved Treads Treads Improved Treads Leg Flexi-carbon Leg Hover Unit Gyrokinetic Inverter Flight Unit VTOL Module Utility Large Storage Unit Device Advanced Sensor Array Storage Large Storage Unit Processor Advanced Visual Processing Unit Hackware Improved Hacking Suite Protection Light Armor Plating Weapon Compact Ion Cannon Energy Gun Advanced Variable Charge Gun Energy Cannon Compact Ion Cannon Ballistic Gun Advanced KE Penetrator Ballistic Cannon Heavy Mass Driver Launcher Neutron Missile Launcher Special Weapon Mining Laser Impact Weapon Mace Slashing Weapon Katana Piercing Weapon Enhanced Force Lance Build | -11 -10 -9 -9 -9 -9 -6 -6 -6 -5 -4 -4 -4 -4 -4 -3 -3 ------- Run | Yrd Mat Mat Sto Rec Scr Fac Low Low Fac Fac Ext Cet Arc Hub Res Tes Slots Evolved 14 | . . 2 . . . 6 . . 2 2 . . . . 2 . Power 1 | . . . . . . 1 . . . . . . . . . . Propulsion 3 | . . 2 . . . 1 . . . . . . . . . . Utility 9 | . . . . . . 4 . . 2 2 . . . . 1 . Weapon 1 | . . . . . . . . . . . . . . . 1 . Parts Attached 215 | 7 9 27 13 . . 9 7 2 27 21 33 10 . 14 10 26 Power 30 | 1 3 4 . . . 1 1 . 4 2 4 2 . 4 2 2 Engine 8 | 1 1 4 . . . 1 1 . . . . . . . . . Core 11 | . 2 . . . . . . . 4 2 2 . . 1 . . Reactor 11 | . . . . . . . . . . . 2 2 . 3 2 2 Propulsion 68 | 3 2 10 9 . . 3 1 . 11 7 10 2 . 3 2 5 Treads 36 | 2 . 7 9 . . 3 1 . 1 6 . 2 . 2 2 1 Leg 23 | 1 2 3 . . . . . . 3 . 10 . . 1 . 3 Wheel . | . . . . . . . . . . . . . . . . . Hover 3 | . . . . . . . . . 3 . . . . . . . Flight 6 | . . . . . . . . . 4 1 . . . . . 1 Utility 73 | 1 2 6 2 . . 4 3 2 8 9 12 2 . 7 5 10 Device 31 | . . 3 . . . 2 2 1 3 4 6 . . 3 2 5 Storage 4 | 1 1 . . . . . . . . 1 . . . 1 . . Processor 16 | . . . . . . 1 . 1 1 3 3 . . 3 1 3 Hackware 6 | . . . 1 . . . . . 3 . . . . . 1 1 Protection 16 | . 1 3 1 . . 1 1 . 1 1 3 2 . . 1 1 Artifact . | . . . . . . . . . . . . . . . . . Weapon 44 | 2 2 7 2 . . 1 2 . 4 3 7 4 . . 1 9 Energy Gun 13 | . . 2 1 . . . 1 . 2 1 1 2 . . . 3 Energy Cannon 4 | . . 1 1 . . . . . . . . . . . . 2 Ballistic Gun 16 | 2 2 1 . . . . 1 . 1 1 5 2 . . . 1 Ballistic Cannon 2 | . . . . . . . . . . 1 . . . . . 1 Launcher 3 | . . 1 . . . . . . . . . . . . . 2 Special Weapon 1 | . . 1 . . . . . . . . . . . . . . Impact Weapon 1 | . . 1 . . . . . . . . . . . . . . Slashing Weapon 3 | . . . . . . 1 . . 1 . 1 . . . . . Piercing Weapon 1 | . . . . . . . . . . . . . . . 1 . Special Melee Weapon . | . . . . . . . . . . . . . . . . . Unidentified Prototypes 25 | . . 3 2 . . . . . 1 1 . 4 . . . 14 Parts Lost 78 | . 2 . 1 . . . 9 . 16 10 8 2 . 5 3 22 Power 12 | . 1 . . . . . 1 . 1 2 2 . . 1 1 3 Propulsion 30 | . 1 . 1 . . . 2 . 13 2 3 1 . . . 7 Utility 26 | . . . . . . . 6 . 1 5 1 1 . 4 1 7 Weapon 10 | . . . . . . . . . 1 1 2 . . . 1 5 Highest Loss Streak 18 | . 1 . 1 . . . 4 . 6 3 3 2 . 2 1 18 To Critical Strikes 1 | . . . . . . . . . . 1 . . . . . . Average Backups 12 | 2 13 14 14 15 14 13 13 14 8 6 9 8 8 8 13 10 Power . | . 1 . 1 1 1 . . . . . . . . . . . Propulsion 2 | 1 3 2 1 2 1 2 2 2 1 . 4 2 1 1 2 2 Utility 5 | . 4 8 8 9 9 7 6 7 3 4 1 . . . 2 3 Weapon 4 | . 3 4 3 3 3 3 4 5 2 . 3 5 7 6 7 4 Tool/Special . | . . . . . . . . . . . . . . . . . Unused Backups 65 | . 4 11 2 . 1 2 2 1 6 2 14 6 . 2 7 5 Power 3 | . 1 . . . . . . . . . . 1 . . 1 . Propulsion 20 | . 2 2 1 . . 1 1 . . . 8 3 . . 1 1 Utility 15 | . . 3 1 . 1 1 1 1 2 1 1 . . 1 . 2 Weapon 25 | . 1 6 . . . . . . 2 1 5 2 . 1 5 2 Tool/Special 2 | . . . . . . . . . 2 . . . . . . . Average Slot Usage (%) 93 | . 99 99 97 100 100 98 97 98 67 67 92 96 89 87 89 85 Engine 6 | . 4 10 11 11 11 12 12 13 3 . . . . . . . Core 1 | . 9 . . . . . . . 2 6 7 . . . . . Reactor 2 | . . . . . . . . . . . 1 9 10 9 8 7 Treads 25 | . 16 35 43 44 44 33 32 33 9 20 9 1 10 13 14 2 Leg 4 | . 11 7 . . . . . . 3 . 15 21 5 1 . 10 Device 9 | . . 1 . . . 12 21 20 11 8 19 24 21 17 19 18 Storage 7 | . 14 11 11 11 11 6 6 6 3 1 5 5 5 5 4 3 Processor 7 | . . . . . . 5 5 4 1 9 18 15 15 19 19 18 Hackware 3 | . . . 1 11 11 6 1 . 11 10 . . . . 3 4 Protection 5 | . 13 9 9 . . 5 1 6 1 . 2 6 10 7 2 3 Energy Gun 4 | . . 14 4 . . . 1 . . . 2 3 9 4 7 4 Energy Cannon 3 | . . . 8 11 11 6 6 6 . . . . . . . . Ballistic Gun 5 | . 28 7 . . . . 1 6 1 . 6 6 . 5 5 3 Impact Weapon 2 | . . . 6 11 11 5 . . . . . . . . . . Peak Build Rating 175 | 6 12 19 26 26 26 51 53 56 68 112 106 130 130 131 141 175 Average Rating 59 | 4 9 16 20 26 25 43 50 55 44 80 92 114 130 124 135 147 On Entrance 59 | . 6 12 19 26 26 26 51 51 56 29 95 100 130 130 123 135 Avg Prop Armor Cover (%) 12 | . 7 . . . . . . . 8 37 24 2 2 2 . . Naked Turns . | . . . . . . . . . . . . . . . . . Heaviest Build 89 | 14 34 41 41 34 34 46 63 63 63 70 60 82 80 85 80 89 Greatest Support 188 | 40 40 83 92 92 92 136 136 136 136 135 135 160 160 183 188 188 Greatest Overweight (x) 4 | . 1 1 . . . . . . 4 . 2 . . . . . Average Overweight (x) . | . . . . . . . . . . . . . . . . . Largest Inventory Capacity 15 | 8 15 15 15 15 15 15 15 15 15 10 10 10 10 15 15 15 Average Capacity 13 | 6 14 15 15 15 15 15 15 15 9 6 10 10 10 10 15 14 Most Carried 15 | 5 15 15 15 15 15 15 15 15 15 10 10 10 9 10 15 15 Average Carried 13 | 2 13 14 14 15 14 13 13 14 8 6 9 9 9 9 14 13 Final Capacity 15 | 8 15 15 15 15 15 15 15 15 5 10 10 10 10 15 15 5 Final Carried 15 | 5 15 15 15 15 15 15 13 15 5 9 10 9 9 10 15 5 Class Distribution -------------------- 38% | Mutant 28% | Scavenger-Mutant 9% | Scavenger-Tank 7% | Scavenger-Skirmisher 5% | Hacker-Mutant 5% | Assassin Dominant Class ---------------- Mutant | -10/Materials Scavenger-Mutant | -9/Materials Mutant | -9/Storage Mutant | -9/Recycling Mutant | -9/Scraptown Assassin | -6/Factory Assassin | -6/Lower Caves Mutant | -6/Lower Caves Hacker-Mutant | -5/Factory Scavenger-Skirmisher | -4/Factory Scavenger-Mutant | -4/Extension Scavenger-Mutant | -4/Cetus Scavenger-Mutant | -4/Archives Scavenger-Mutant | -4/Hub_04(d) Scavenger-Tank | -3/Research Scavenger-Assassin | -3/Testing Resources | -11 -10 -9 -9 -9 -9 -6 -6 -6 -5 -4 -4 -4 -4 -4 -3 -3 ----------- Run | Yrd Mat Mat Sto Rec Scr Fac Low Low Fac Fac Ext Cet Arc Hub Res Tes Matter Collected 6042 | 230 416 880 241 . 10 70 431 20 329 952 658 426 . 394 350 635 Remotely 414 | . . . . . . . . . . . 176 238 . . . . Salvage Created 10551 | . 449 1653 790 317 . 73 787 . 501 987 939 526 . 1569 1003 957 Parts 533 | . 40 99 52 18 . 7 19 . 24 34 49 14 . 85 54 38 Haulers Intercepted 12 | . 2 4 3 . . . . . . . . . . 2 1 . Recyclers Shooed 11 | . 1 1 1 . . . . . 2 2 . . . 1 2 1 Parts Field Recycled . | . . . . . . . . . . . . . . . . . Retrieved Matter . | . . . . . . . . . . . . . . . . . Parts Self-Destructed 22 | . . . . . . . 17 5 . . . . . . . . Prevented . | . . . . . . . . . . . . . . . . . Parts Restored . | . . . . . . . . . . . . . . . . . Kills | -11 -10 -9 -9 -9 -9 -6 -6 -6 -5 -4 -4 -4 -4 -4 -3 -3 ------- Run | Yrd Mat Mat Sto Rec Scr Fac Low Low Fac Fac Ext Cet Arc Hub Res Tes Combat Hostiles Destroyed 147 | . 8 30 19 4 . 1 14 . 11 10 10 6 . 13 9 12 Melee 4 | . . . . . . . . . 4 . . . . . . . Guns 89 | . 8 27 1 . . . 2 . 6 2 10 6 . 13 9 5 Cannons 36 | . . . 11 4 . 1 7 . 1 8 . . . . . 4 AOE 16 | . . 2 7 . . . 4 . . . . . . . . 3 Classes Destroyed 17 | . 5 5 . . . . 2 . 1 . 1 . . 2 . 1 Worker 17 | . . 2 . . . . . . . 1 . . . 11 2 1 Builder 13 | . 2 1 . . . . . . . 1 1 . . 4 2 2 Tunneler 1 | . . . . . . . . . . . . . . 1 . . Hauler 12 | . 2 4 3 . . . . . . . . . . 2 1 . Recycler 14 | . . 2 . 1 . . . . 1 4 1 . . 2 1 2 Operator 4 | . . 2 1 . . . . . . . 1 . . . . . Watcher 12 | . 3 5 . . . . . . . . . 1 . 1 2 . Swarmer 25 | . 3 6 7 . . . . . 8 . 1 . . . . . Cutter 3 | . . . . . . . . . . . . . . 3 . . Grunt 57 | . 5 15 4 . . . 8 . . 8 6 . . 4 4 3 Brawler 4 | . . 1 . . . . 3 . . . . . . . . . Duelist 1 | . . . . . . . 1 . . . . . . . . . Sentry 28 | . . 8 8 4 . 1 1 . 1 . 1 . . 2 2 . Specialist 3 | . . . . . . . . . . . . . . . . 3 Hunter 12 | . . . . . . . . . 2 2 1 . . 2 3 2 Programmer 7 | . . . . . . . 1 . . . . . . 2 . 4 Behemoth 1 | . . . . . . . . . . . 1 . . . . . Cetus Guard 6 | . . . . . . . . . . . . 6 . . . . Savage 1 | . . . . . . . . . . . . 1 . . . . Best Kill Streak 13 | . 3 5 5 3 . 1 4 . 4 8 3 4 . 13 6 7 Combat Bots Only 6 | . 3 5 5 1 . 1 4 . 4 2 3 4 . 4 3 6 Max Kills in Single Turn 12 | . 1 3 4 1 . 1 1 . 1 1 1 2 . 12 3 2 Gunslinging 1 | . . 1 . . . . . . . . . . . . 1 . Exploded 4 | . . 2 4 . . . 1 . . . . . . . . 2 Melee 1 | . . . . . . . . . 1 . . . . . . . Uniques/NPCs Destroyed . | . . . . . . . . . . . . . . . . . Combat | -11 -10 -9 -9 -9 -9 -6 -6 -6 -5 -4 -4 -4 -4 -4 -3 -3 -------- Run | Yrd Mat Mat Sto Rec Scr Fac Low Low Fac Fac Ext Cet Arc Hub Res Tes Hostile Shots Fired 1798 | . 63 110 59 12 . 18 102 . 162 198 167 61 . 197 88 561 Missed 563 | . 13 30 15 3 . 9 30 . 51 49 56 15 . 62 29 201 Hits 1235 | . 50 80 44 9 . 9 72 . 111 149 111 46 . 135 59 360 Melee 22 | . . 1 . . . . 9 . 1 . . . . 10 . 1 Projectile 1213 | . 50 79 44 9 . 9 63 . 110 149 111 46 . 125 59 359 Critical Strikes 64 | . . 1 . . . . 5 . 3 5 9 9 . 8 2 22 Actively Blocked 3 | . . . . . . . . . . . . . . 1 2 . Part Disruptions 2 | . . . . . . . . . . . . . . . . 2 Damage Taken 21183 | . 549 1011 743 140 . 71 1466 . 1818 3169 2261 998 . 1829 1077 6051 Core 2843 | . 92 129 73 18 . . 83 . 432 365 198 70 . 57 20 1306 Absorbed by Shields 395 | . . . . . . . 70 . . . . . . 325 . . Redirected to Shielding 35 | . 24 11 . . . . . . . . . . . . . . Ignored by Resistances 920 | . . . . . . . . . 38 . 199 268 . 91 . 324 Regen/Repaired (Parts) 446 | . . 97 349 . . . . . . . . . . . . . Core Remaining (%) 65 | 100 63 . . . 45 . . 90 56 . . . . 40 . . Volleys Fired 595 | 1 49 101 56 9 . 4 50 . 31 71 65 37 . 49 33 39 Largest 3 | 2 2 2 2 1 . 1 2 . 2 2 2 2 . 2 3 3 Hottest 289 | 40 46 126 126 90 . 90 153 . 162 105 105 70 . 275 195 289 Shots Fired 1039 | 2 98 200 61 9 . 4 84 . 41 76 123 74 . 96 97 74 Gun 844 | 2 98 198 10 . . . 35 . 31 17 123 74 . 96 97 63 Cannon 177 | . . . 49 9 . 4 41 . 7 59 . . . . . 8 Launcher 17 | . . 1 2 . . . 8 . 3 . . . . . . 3 Special 1 | . . 1 . . . . . . . . . . . . . . Kinetic 623 | 2 98 96 . . . . 27 . 25 71 87 74 . 58 46 39 Thermal 399 | . . 103 59 9 . 4 49 . 13 5 36 . . 38 51 32 Explosive 17 | . . 1 2 . . . 8 . 3 . . . . . . 3 Electromagnetic . | . . . . . . . . . . . . . . . . . Robot Hit Streak 24 | 1 9 24 18 3 . 6 17 . 5 8 20 12 . 9 11 16 Robot Miss Streak 13 | 1 5 4 2 2 . . 2 . 3 4 4 5 . 4 3 13 Penetration Max 1 | . . . . . . . . . 1 1 1 1 . 1 1 1 Secondary Targets 11 | . . 2 . . . . . . . . 2 2 . 3 2 . Max Gunslinging Chain 1 | . . 1 . . . . . . . . 1 1 . 1 1 . Shots Hit Robots 719 | 1 61 140 55 5 . 4 59 . 29 52 91 53 . 62 59 48 Core Hits 370 | . 26 56 28 5 . 2 29 . 20 23 44 22 . 51 31 33 Critical Kills 32 | . . . . . . . 1 . 1 . 2 5 . 9 8 6 Critical Parts Destroyed 34 | . . 1 1 . . . 1 . 1 . . 9 . 7 7 7 Critical Strikes 82 | . . 8 1 . . . 3 . 2 5 3 15 . 16 16 13 Burn 9 | . . 7 . . . . . . . 1 1 . . . . . Meltdown 1 | . . . . . . . 1 . . . . . . . . . Destroy 67 | . . 1 . . . . 2 . 2 . 2 15 . 16 16 13 Blast 4 | . . . . . . . . . . 4 . . . . . . Smash 1 | . . . 1 . . . . . . . . . . . . . Melee Attacks 86 | . . 6 12 1 . 10 5 . 18 3 14 . . . 3 14 Impact 29 | . . 6 12 1 . 10 . . . . . . . . . . Slashing 40 | . . . . . . . 5 . 18 3 14 . . . . . Piercing 17 | . . . . . . . . . . . . . . . 3 14 Sneak Attacks 7 | . . 1 1 . . . . . . . 3 . . . . 2 Combat Hostiles . | . . . . . . . . . . . . . . . . . Follow-up Attacks . | . . . . . . . . . . . . . . . . . Damage Inflicted 23665 | 10 783 2614 1939 162 . 113 1910 . 1009 2935 2434 1528 . 3697 2048 2483 Guns 13802 | 10 779 2299 120 . . . 465 . 496 262 2226 1528 . 2312 2048 1257 Cannons 5227 | . . . 1135 162 . 113 842 . 169 2662 . . . . . 144 Explosions 3580 | . . 198 482 . . . 603 . 148 . . . . 1385 . 764 Melee 971 | . . 117 200 . . . . . 196 . 208 . . . . 250 Ramming 85 | . 4 . 2 . . . . . . 11 . . . . . 68 Kinetic 11570 | 10 779 1108 . . . . 326 . 354 2879 1718 1528 . 1292 982 594 Thermal 7459 | . . 1191 1255 162 . 113 981 . 311 45 508 . . 1020 1066 807 Explosive 2195 | . . 198 482 . . . 603 . 148 . . . . . . 764 Electromagnetic 1385 | . . . . . . . . . . . . . . 1385 . . Impact 317 | . . 117 200 . . . . . . . . . . . . . Slashing 404 | . . . . . . . . . 196 . 208 . . . . . Piercing 250 | . . . . . . . . . . . . . . . . 250 Highest Corruption 9 | . . . . . . . 9 9 . . . . . 4 . 7 Average Corruption 4 | . . . . . . . 4 9 . . . . . 2 . 6 Corruption Purged . | . . . . . . . . . . . . . . . . . Corruption Blocked 9 | . . . . . . . . . . . . . . . . 9 Effects 32 | . . . . . . . 23 6 . . . . . 2 . 1 Message Errors 10 | . . . . . . . 6 4 . . . . . . . . Matter Fused 6 | . . . . . . . 5 1 . . . . . . . . Heat Flow Errors 6 | . . . . . . . 4 . . . . . . 2 . . Energy Discharges 4 | . . . . . . . 2 1 . . . . . . . 1 Data Loss (minor) 2 | . . . . . . . 2 . . . . . . . . . Misfires 1 | . . . . . . . 1 . . . . . . . . . Alerts 1 | . . . . . . . 1 . . . . . . . . . Weapon Failures 2 | . . . . . . . 2 . . . . . . . . . Overload Shots 7 | . . . . . . . . . . . . . . 6 . 1 Overflow Damage 633 | . . . 49 . . . 39 . 12 216 88 . . 85 . 144 Projectiles 252 | . . . . . . . 36 . . 216 . . . . . . Explosions 107 | . . . . . . . 3 . . . . . . 85 . 19 Melee 274 | . . . 49 . . . . . 12 . 88 . . . . 125 Knockbacks 32 | . . . . . . . . . . 29 . . . . . 3 Impact . | . . . . . . . . . . . . . . . . . Kinetic 28 | . . . . . . . . . . 25 . . . . . 3 Secondary 4 | . . . . . . . . . . 4 . . . . . . Self-Inflicted Damage 335 | . . . 139 . . . . . 39 . . . . 105 . 52 Shots 7 | . . . 3 . . . . . 2 . . . . 1 . 1 Rammed 5 | . . . 1 . . . . . . 3 . . . 1 . . Targets Rammed 9 | . 1 . 1 . . . . . . 3 . . . 1 . 3 Kicked 4 | . 1 . . . . . . . . . . . . . . 3 Crushed . | . . . . . . . . . . . . . . . . . Highest Temperature 409 | . 20 381 294 147 . 208 409 . 262 317 192 149 . 198 199 199 Average Temperature 86 | . 6 92 89 65 . 107 113 . 78 70 80 55 . 91 85 91 Received Heat Transfer 2966 | . 216 351 186 36 . 24 514 . 135 453 451 . . 201 126 273 Effects 7 | . . 2 2 . . . 3 . . . . . . . . . Energy Bleed 2 | . . 2 . . . . . . . . . . . . . . Interference 5 | . . . 2 . . . 3 . . . . . . . . . Siege Activations . | . . . . . . . . . . . . . . . . . Martial Activations . | . . . . . . . . . . . . . . . . . Shielding Activations . | . . . . . . . . . . . . . . . . . Robots Disrupted . | . . . . . . . . . . . . . . . . . Combat Hostiles . | . . . . . . . . . . . . . . . . . Robots Corrupted 2 | . . . . . . . . . . . . . . 1 . 1 Combat Hostiles . | . . . . . . . . . . . . . . . . . Parts Fried 5 | . . . . . . . . . . . . . . 5 . . Impact Corruptions 5 | . . . 2 . . . . . . . . . . . . 3 Robots Melted 2 | . . 1 . . . . 1 . . . . . . . . . Combat Hostiles 2 | . . 1 . . . . 1 . . . . . . . . . Parts Melted 25 | . . 6 4 . . . 2 . 2 3 3 . . 1 4 . Heat Transferred 11925 | . . 3108 1776 222 . 148 1406 . 444 200 1250 . . 1138 1332 901 Parts Sabotaged . | . . . . . . . . . . . . . . . . . Parts Stolen . | . . . . . . . . . . . . . . . . . Parts Stripped . | . . . . . . . . . . . . . . . . . Power Chain Reactions . | . . . . . . . . . . . . . . . . . Alert | -11 -10 -9 -9 -9 -9 -6 -6 -6 -5 -4 -4 -4 -4 -4 -3 -3 ------- Run | Yrd Mat Mat Sto Rec Scr Fac Low Low Fac Fac Ext Cet Arc Hub Res Tes Maximum Alert Level 3 | . . 1 1 . . . . . . 2 1 1 . 3 1 1 Low Security (%) 64 | 100 100 56 36 100 . 100 . . 100 39 30 72 100 82 35 93 Level 1 35 | . . 43 63 . . . . . . 58 69 27 . 10 64 6 Level 2 . | . . . . . . . . . . 2 . . . 1 . . Level 3 . | . . . . . . . . . . . . . . 5 . . Level 4 . | . . . . . . . . . . . . . . . . . Level 5 . | . . . . . . . . . . . . . . . . . High Security . | . . . . . . . . . . . . . . . . . Max Security . | . . . . . . . . . . . . . . . . . Peak Influence 718 | . 107 399 392 186 . 34 . . 176 406 360 251 44 718 376 297 Initial 376 | . . . 148 136 . . . . . 70 186 187 44 1 376 44 Average 152 | . 23 180 255 94 . 3 . . 36 186 261 172 27 145 211 49 Influence Increases 7060 | . 355 955 738 278 . 65 305 23 464 782 967 255 . 984 345 544 Destroy 0b10 Robot/C 3460 | . 160 600 380 80 . 20 280 20 220 320 540 160 . 260 180 240 Destroy 0b10 Robot/NC 400 | . 35 80 20 5 . . 5 . 5 45 25 10 . 105 40 25 Destroy Leader 640 | . 40 178 116 . . 10 20 . 30 62 54 . . 64 36 30 Allied During Kill 362 | . . . 1 . . . . 3 . 54 250 54 . . . . Successful Hack 360 | . 59 33 36 25 . 30 . . 35 . 69 9 . 9 43 12 Select Force Hacks 150 | . . . . 150 . . . . . . . . . . . . Disable Machine 555 | . . 30 120 15 . . . . 30 45 15 . . 210 15 75 Destroy Structure 703 | . 1 19 35 3 . 5 . . 54 66 14 22 . 306 16 162 Lose Combat Pursuer 330 | . 60 15 30 . . . . . 90 90 . . . 30 15 . Active Sensor Use 100 | . . . . . . . . . . 100 . . . . . . Influence Decreases 6917 | . 355 604 739 628 . 65 294 34 320 544 1014 478 108 270 984 480 Entered New Map 1286 | . . . 203 214 . . . 3 . 74 196 148 68 3 342 35 Time Decay 4506 | . 345 604 526 414 . 65 194 8 222 280 538 190 40 217 612 251 Lost Part 672 | . 10 . 10 . . . 90 . 98 90 80 20 . 50 30 194 Lost Ally 453 | . . . . . . . 10 23 . 100 200 120 . . . . Squads Dispatched 45 | . . 4 4 . . . . . 5 7 2 . . 7 11 5 Investigation 14 | . . 2 . . . . . . 1 2 1 . . 1 7 . Extermination 6 | . . . . . . . . . 2 1 . . . 1 . 2 Reinforcement 22 | . . 2 2 . . . . . 2 4 1 . . 4 4 3 Assault 3 | . . . 2 . . . . . . . . . . 1 . . Garrison . | . . . . . . . . . . . . . . . . . Intercept . | . . . . . . . . . . . . . . . . . Searches Triggered . | . . . . . . . . . . . . . . . . . Construction Impeded 5 | . . . . . . . . . . 2 . . . 1 . 2 Haulers Reinforced 5 | . . . . . . . . . . 1 . . . . 3 1 Active Scanning Responses 1 | . . . . . . . . . . 1 . . . . . . Cargo Convoy Interrupts . | . . . . . . . . . . . . . . . . . Stealth | -11 -10 -9 -9 -9 -9 -6 -6 -6 -5 -4 -4 -4 -4 -4 -3 -3 --------- Run | Yrd Mat Mat Sto Rec Scr Fac Low Low Fac Fac Ext Cet Arc Hub Res Tes Distress Signals 20 | . 1 3 1 . . . . . 1 2 2 2 . 1 6 1 Communications Jammed . | . . . . . . . . . . . . . . . . . Distress Signals . | . . . . . . . . . . . . . . . . . Times Spotted 290 | . 17 43 31 3 . 2 14 . 38 26 34 10 . 20 24 28 Peak Tracking Total 13 | . 3 4 5 1 . 1 7 . 10 5 6 5 . 6 9 13 Tactical Retreats 16 | . 3 1 2 . . . . . 5 3 . . . 1 1 . ECM-based Alert Blocks 6 | . . . . . . . . . 6 . . . . . . . Traps | -11 -10 -9 -9 -9 -9 -6 -6 -6 -5 -4 -4 -4 -4 -4 -3 -3 ------- Run | Yrd Mat Mat Sto Rec Scr Fac Low Low Fac Fac Ext Cet Arc Hub Res Tes Traps Triggered 5 | . . 4 . . . . . . . . . . . . 1 . Indirectly . | . . . . . . . . . . . . . . . . . Trap Hack Attempts . | . . . . . . . . . . . . . . . . . Triggered . | . . . . . . . . . . . . . . . . . Disarmed . | . . . . . . . . . . . . . . . . . Reprogrammed . | . . . . . . . . . . . . . . . . . Reused . | . . . . . . . . . . . . . . . . . Traps Extracted . | . . . . . . . . . . . . . . . . . Installed . | . . . . . . . . . . . . . . . . . Triggered . | . . . . . . . . . . . . . . . . . Machines | -11 -10 -9 -9 -9 -9 -6 -6 -6 -5 -4 -4 -4 -4 -4 -3 -3 ---------- Run | Yrd Mat Mat Sto Rec Scr Fac Low Low Fac Fac Ext Cet Arc Hub Res Tes Machines Disabled 37 | . . 2 8 1 . . . . 2 3 1 . . 14 1 5 Max in Single Turn 12 | . . 1 2 1 . . . . 1 . . . . 12 1 2 Garrison Access 2 | . . . 1 . . . . . . . . . . . 1 . Network Hub 1 | . . . . . . . . . . . . . . 1 . . Machines Repaired . | . . . . . . . . . . . . . . . . . Machines Dismantled . | . . . . . . . . . . . . . . . . . Machines Sabotaged . | . . . . . . . . . . . . . . . . . Overloaded Fab Kills . | . . . . . . . . . . . . . . . . . Hacking | -11 -10 -9 -9 -9 -9 -6 -6 -6 -5 -4 -4 -4 -4 -4 -3 -3 --------- Run | Yrd Mat Mat Sto Rec Scr Fac Low Low Fac Fac Ext Cet Arc Hub Res Tes Machines Accessed 93 | . 6 14 12 11 4 2 . . 9 3 13 2 . 5 6 6 Terminals 65 | . 6 10 10 6 . 1 . . 6 1 12 2 . 5 2 4 Fabricators 4 | . . . . . . . . . 1 . . . . . 2 1 Repair Stations 6 | . . 2 1 . . . . . . 1 1 . . . 1 . Recycling Units 7 | . . . . 5 . . . . 1 1 . . . . . . Scanalyzers 5 | . . 2 . . . 1 . . 1 . . . . . . 1 Garrison Access 2 | . . . 1 . . . . . . . . . . . 1 . Total Hacks 300 | . 26 56 36 24 32 9 . . 31 11 33 2 . 11 14 15 Successful 189 | . 14 43 24 19 32 4 . . 14 5 12 2 . 7 6 7 Failed 111 | . 12 13 12 5 . 5 . . 17 6 21 . . 4 8 8 Catastrophic 13 | . 1 2 1 . . . . . . 1 4 . . 1 3 . Database Lockouts . | . . . . . . . . . . . . . . . . . Manual 127 | . 18 19 17 17 . 5 . . 19 11 6 . . 8 3 4 Terminals 199 | . 26 28 27 18 . 5 . . 26 7 31 2 . 11 5 13 Fabricators 10 | . . . . . . . . . 3 . . . . . 6 1 Repair Stations 19 | . . 4 8 . . . . . . 3 2 . . . 2 . Recycling Units 8 | . . . . 6 . . . . 1 1 . . . . . . Scanalyzers 30 | . . 24 . . . 4 . . 1 . . . . . . 1 Garrison Access 2 | . . . 1 . . . . . . . . . . . 1 . Terminal Hacks 86 | . 5 8 9 6 32 . . . 5 2 9 2 . 3 1 4 Record 29 | . . . . . 25 . . . 1 . 2 1 . . . . Part Schematic 1 | . . . . 1 . . . . . . . . . . . . Robot Analysis 9 | . . 2 . . 7 . . . . . . . . . . . Prototype ID Bank 3 | . 1 . . 2 . . . . . . . . . . . . Open Door 10 | . . . 4 . . . . . . . 4 1 . . . 1 Branch Access Points 4 | . . 1 . . . . . . . 1 1 . . . 1 . Emergency Access Points 2 | . . 2 . . . . . . . . . . . . . . Terminal Index 8 | . . 2 1 2 . . . . 1 1 . . . 1 . . Recycling Unit Index 1 | . . . . 1 . . . . . . . . . . . . Locate Traps 9 | . 4 . 1 . . . . . 1 . 1 . . 1 . 1 Recall Investigation 1 | . . . . . . . . . . . . . . . . 1 Recall Reinforcements 1 | . . . 1 . . . . . . . . . . . . . Hauler Manifests 2 | . . 1 . . . . . . . . . . . 1 . . Zone Layout 6 | . . . 2 . . . . . 2 . 1 . . . . 1 Fabricator Hacks 5 | . . . . . . . . . 1 . . . . . 3 1 Network Status 2 | . . . . . . . . . 1 . . . . . . 1 Load Schematic 2 | . . . . . . . . . . . . . . . 2 . Build 1 | . . . . . . . . . . . . . . . 1 . Repair Station Hacks 13 | . . 4 8 . . . . . . . 1 . . . . . Scan Component 7 | . . 2 4 . . . . . . . 1 . . . . . Repair 6 | . . 2 4 . . . . . . . . . . . . . Recycling Unit Hacks . | . . . . . . . . . . . . . . . . . Scanalyzer 26 | . . 22 . . . 3 . . 1 . . . . . . . Insert Component 10 | . . 9 . . . 1 . . . . . . . . . . Analyze 10 | . . 9 . . . 1 . . . . . . . . . . Retrieve Study 6 | . . 4 . . . 1 . . 1 . . . . . . . Garrison Access Hacks 2 | . . . 1 . . . . . . . . . . . 1 . Seal Access 2 | . . . 1 . . . . . . . . . . . 1 . Unauthorized Hacks 57 | . 9 9 6 13 . 1 . . 7 3 2 . . 4 1 2 Terminals 48 | . 9 8 6 8 . 1 . . 6 1 2 . . 4 1 2 Assimilate 1 | . . . . . . 1 . . . . . . . . . . Botnet 24 | . 3 3 3 3 . . . . 3 1 2 . . 3 1 2 Disrupt 1 | . . . . . . . . . 1 . . . . . . . Operators 1 | . 1 . . . . . . . . . . . . . . . Skim 21 | . 5 5 3 5 . . . . 2 . . . . 1 . . Fabricators . | . . . . . . . . . . . . . . . . . Repair Stations 1 | . . . . . . . . . . 1 . . . . . . Mechanics 1 | . . . . . . . . . . 1 . . . . . . Recycling Units 7 | . . . . 5 . . . . 1 1 . . . . . . Tunnel 5 | . . . . 5 . . . . . . . . . . . . Fedlink 1 | . . . . . . . . . 1 . . . . . . . Scrapoids 1 | . . . . . . . . . . 1 . . . . . . Scanalyzers 1 | . . 1 . . . . . . . . . . . . . . Researchers 1 | . . 1 . . . . . . . . . . . . . . Garrison Access . | . . . . . . . . . . . . . . . . . Data Cores Recovered . | . . . . . . . . . . . . . . . . . Used . | . . . . . . . . . . . . . . . . . Hacking Detections 69 | . 6 13 9 4 . 2 . . 7 1 13 . . 5 5 4 Full Trace Events 4 | . . . . . . . . . . . 1 . . 1 2 . Feedback Events . | . . . . . . . . . . . . . . . . . Feedback Blocked . | . . . . . . . . . . . . . . . . . Robot Schematics Acquired 1 | . . . . . . . . . . . . . . . . 1 Robots Built . | . . . . . . . . . . . . . . . . . Authchips . | . . . . . . . . . . . . . . . . . Time . | . . . . . . . . . . . . . . . . . Total Robot Build Rating . | . . . . . . . . . . . . . . . . . Part Schematics Acquired 12 | . . 9 . 1 . 1 . . . . . . . . . 1 Parts Built 2 | . . . . . . . . . . . . . . . 2 . Authchips . | . . . . . . . . . . . . . . . . . Time 25 | . . . . . . . . . . . . . . . 25 . Total Part Build Rating 2 | . . . . . . . . . . . . . . . 2 . Part Studies Acquired 6 | . . 4 . . . 1 . . 1 . . . . . . . Parts Repaired 6 | . . 2 4 . . . . . . . . . . . . . Time 168 | . . 58 110 . . . . . . . . . . . . . Parts Recycled . | . . . . . . . . . . . . . . . . . Recycled Matter . | . . . . . . . . . . . . . . . . . Retrieved Matter . | . . . . . . . . . . . . . . . . . Retrieved Components . | . . . . . . . . . . . . . . . . . Parts Scanalyzed 10 | . . 9 . . . 1 . . . . . . . . . . Part Schematics Acquired 10 | . . 9 . . . 1 . . . . . . . . . . Parts Damaged . | . . . . . . . . . . . . . . . . . Bothacking | -11 -10 -9 -9 -9 -9 -6 -6 -6 -5 -4 -4 -4 -4 -4 -3 -3 ------------ Run | Yrd Mat Mat Sto Rec Scr Fac Low Low Fac Fac Ext Cet Arc Hub Res Tes Used RIF Installer . | . . . . . . . . . . . . . . . . . Robots Hacked . | . . . . . . . . . . . . . . . . . Non-combat . | . . . . . . . . . . . . . . . . . Combat . | . . . . . . . . . . . . . . . . . Robot Hacks Applied . | . . . . . . . . . . . . . . . . . Relay Couplers Released . | . . . . . . . . . . . . . . . . . Fabnet Peak Effective % . | . . . . . . . . . . . . . . . . . Robots Rewired 15 | . . . . . . . 2 . . . 13 . . . . . Allies Hacked . | . . . . . . . . . . . . . . . . . Hacks Repelled . | . . . . . . . . . . . . . . . . . Allies | -11 -10 -9 -9 -9 -9 -6 -6 -6 -5 -4 -4 -4 -4 -4 -3 -3 -------- Run | Yrd Mat Mat Sto Rec Scr Fac Low Low Fac Fac Ext Cet Arc Hub Res Tes Total Allies 28 | . . . 2 . . 1 2 . . 5 18 . . . . . Largest Group 8 | . . . 2 . . 1 2 2 . 5 8 7 . . . . Highest-Rated Group 334 | . . . 62 . . 26 61 61 . 238 334 275 . . . . Highest-Rated Ally 51 | . . . 31 . . 26 32 32 . 50 51 46 . . . . Initial UFD Resources 40 | . . . . . . 22 22 22 26 40 37 37 37 37 39 39 Total Orders 2 | . . . . . . . 2 . . . . . . . . . EXPLORE 2 | . . . . . . . 2 . . . . . . . . . Ally Attacks 255 | . . . . . . . . 9 . 78 131 37 . . . . Total Damage 5815 | . . . . . . . . 292 . 1525 3268 730 . . . . Kills 33 | . . . . . . . . 1 . 9 20 3 . . . . Allies Corrupted . | . . . . . . . . . . . . . . . . . Allies Melted 1 | . . . . . . . . 1 . . . . . . . . Intel | -11 -10 -9 -9 -9 -9 -6 -6 -6 -5 -4 -4 -4 -4 -4 -3 -3 ------- Run | Yrd Mat Mat Sto Rec Scr Fac Low Low Fac Fac Ext Cet Arc Hub Res Tes Active Infowar (turns) 8987 | . . 236 . . . 435 1179 179 760 700 1536 399 83 522 2010 948 Optics 5940 | . . . . . . . . . . 442 1536 399 83 522 2010 948 Sensors 6106 | . . 111 . . . 435 1179 179 760 505 . . . 57 2010 870 A.S.S. 506 | . . . . . . . . . . 326 180 . . . . . Terrain 1238 | . . . . . . 433 34 . . . 22 399 83 267 . . Structural 3335 | . . 125 . . . . 684 . . . . . . . 1611 915 Cloaking 80 | . . . . . . . . . . 80 . . . . . . Jamming 6 | . . . . . . . . . 1 . 3 . . . 2 . ECM 30 | . . . . . . . . . 28 . . . . . . 2 Robot Analysis Total 9 | . . 2 . . 7 . . . . . . . . . . . Derelict Logs Recovered 2 | . . . . . . . 2 . . . . . . . . . Drone Launches 2 | . . . . . . . 2 . . . . . . . . . Drone Recoveries 1 | . . . . . . . 1 . . . . . . . . . Exploration | -11 -10 -9 -9 -9 -9 -6 -6 -6 -5 -4 -4 -4 -4 -4 -3 -3 ------------- Run | Yrd Mat Mat Sto Rec Scr Fac Low Low Fac Fac Ext Cet Arc Hub Res Tes Turns Passed 17033 | 108 1448 2643 1469 1160 1346 437 1189 179 827 700 1536 399 83 522 2010 977 Spaces Moved 7768 | 62 657 927 592 486 838 227 554 108 755 293 704 202 51 200 567 545 Core 51 | 7 . . . . . . . . 4 . . . . . . 40 Treads 5352 | 51 394 748 592 486 838 227 554 108 92 138 203 43 51 200 567 60 Legs 1600 | 4 263 179 . . . . . . 78 . 501 159 . . . 416 Wheels . | . . . . . . . . . . . . . . . . . Hover 273 | . . . . . . . . . 118 155 . . . . . . Flight 492 | . . . . . . . . . 463 . . . . . . 29 Fastest Speed 32 | 50 160 105 160 160 160 160 157 160 32 70 120 120 160 160 160 37 Average Speed 145 | 145 172 152 160 160 160 160 159 160 70 145 146 128 160 160 160 109 Slowest Speed 275 | 160 240 240 160 160 160 160 160 160 275 170 260 160 160 160 160 160 Overloaded Moves 29 | . . . . . . . . . . . . . . . . 29 Propulsion Burnouts . | . . . . . . . . . . . . . . . . . Robots Hopped . | . . . . . . . . . . . . . . . . . Potential Cave-ins . | . . . . . . . . . . . . . . . . . Cave-ins Triggered . | . . . . . . . . . . . . . . . . . Exploration Rate (%) 49 | 4 84 82 76 91 51 6 71 12 20 7 77 86 63 26 23 69 Regions Visited 16 Branch Regions 10 Pre-discovered Areas 7 | . . . . 6 . . 1 . . . . . . . . . Known Exits Taken 13 | . 1 1 1 1 . 1 1 . 1 1 1 1 1 1 1 . Unknown Exits Taken 3 | 1 . . . . 1 . . 1 . . . . . . . . Scrap Searched 6 | . . . . . 3 . 2 1 . . . . . . . . Spaces Dug 68 | . . 4 2 1 . 5 4 . 7 2 . . . . 3 40 Terrain Destroyed 488 | . . 15 33 3 . 5 47 . 25 23 7 12 . 196 7 115 Melee 36 | . . 3 2 1 . 5 4 . 7 2 . . . . 3 9 Projectile 96 | . . 1 6 2 . . 7 . 1 21 7 12 . 24 4 11 AOE 348 | . . 11 25 . . . 36 . 17 . . . . 172 . 87 Terrain Rammed . | . . . . . . . . . . . . . . . . . Walls Destroyed . | . . . . . . . . . . . . . . . . . Machines Disabled . | . . . . . . . . . . . . . . . . . Actions | -11 -10 -9 -9 -9 -9 -6 -6 -6 -5 -4 -4 -4 -4 -4 -3 -3 --------- Run | Yrd Mat Mat Sto Rec Scr Fac Low Low Fac Fac Ext Cet Arc Hub Res Tes Total 12372 | 75 879 1959 1029 859 844 280 763 114 987 449 1082 271 52 308 1592 829 Wait 3176 | . 140 832 333 362 2 18 120 1 111 38 123 1 . 23 940 132 Move 7752 | 61 656 926 591 485 837 226 553 107 754 292 703 201 50 199 566 545 Hop . | . . . . . . . . . . . . . . . . . Pick Up 160 | 5 16 17 3 1 2 6 6 3 8 10 31 8 . 7 17 20 Fast Attach 103 | 7 2 13 5 . . 1 2 1 17 20 17 3 . 7 3 5 Attach 73 | . 2 2 1 . . 6 6 . 13 3 9 3 . 3 4 21 Detach 12 | . . . . . . . . . 6 1 1 . . . . 4 Swap 125 | . 5 32 16 . 1 4 10 1 3 . 11 4 2 7 11 18 Drop 202 | 1 8 30 11 1 2 5 3 1 26 8 37 14 . 12 15 28 Fire 595 | 1 49 101 56 9 . 4 50 . 31 71 65 37 . 49 33 39 Melee 86 | . . 6 12 1 . 10 5 . 18 3 14 . . . 3 14 Ram . | . . . . . . . . . . . . . . . . . Kick 4 | . 1 . . . . . . . . . . . . . . 3 Crush 5 | . . . 1 . . . . . . 3 . . . 1 . . Escape Stasis . | . . . . . . . . . . . . . . . . . Rewire 79 | . . . . . . . 8 . . . 71 . . . . . Trap . | . . . . . . . . . . . . . . . . . Miscellaneous . | . . . . . . . . . . . . . . . . . Route ------- -11/Scrapyard -10/Materials (discovered 4 exits: *Mat x3 / [*Min]) -9/Materials (discovered 5 exits: *Mat x3 / *Min / *Sto) -9/Storage (discovered 2 exits: Mat / *Rec) -9/Recycling (discovered 2 exits: *Fac / *Scr) -9/Scraptown -6/Factory -6/Lower Caves -6/Lower Caves -5/Factory -4/Factory (discovered 4 exits: Upp x2 / *Ext x2) -4/Extension (discovered 3 exits: *Res x2 / *Cet) -4/Cetus (discovered 2 exits: *Res / *Arc) -4/Archives -4/Hub_04(d) -3/Research (discovered 3 exits: Arm / *Tes x2) -3/Testing History --------- Turn | Location | Event 9 | -11/Scrapyard | Discovered new exit (range 15) 109 | -11/Scrapyard | Entered Materials 318 | -10/Materials | Build established: Mutant 910 | -10/Materials | Discovered new exit (range 14) 1038 | -10/Materials | Discovered new exit (range 8) 1255 | -10/Materials | Discovered new exit (range 16) 1367 | -10/Materials | Learned Storage trap positions 1435 | -10/Materials | Learned 2 Storage zone layouts 1455 | -10/Materials | Identified exit to Materials 1465 | -10/Materials | Learned Storage stockpile data 1484 | -10/Materials | Learned 2 Mines zone layouts 1512 | -10/Materials | Loaded intel: 15 trap records 1557 | -10/Materials | Entered another Materials area 1557 | -9/Materials | Evolved 2 slots: Propulsion x2 1558 | -9/Materials | Identified exit to Materials 1791 | -9/Materials | Discovered new exit (range 16) 1883 | -9/Materials | Build established: Scavenger-Mutant 2172 | -9/Materials | Repaired Autogun+ 2400 | -9/Materials | Discovered exit to Materials (range 14) 2640 | -9/Materials | Repaired Lgt. Treads 3450 | -9/Materials | Identified exit to Mines 3450 | -9/Materials | Identified exit to Storage 3556 | -9/Materials | Build established: Mutant 3765 | -9/Materials | Loaded intel: 1 trap record 3982 | -9/Materials | Learned Storage stockpile data 4009 | -9/Materials | Learned Storage emergency access door positions 4045 | -9/Materials | Learned location of 2 exits from Materials 4092 | -9/Materials | Learned Materials trap positions 4148 | -9/Materials | Learned 4 Recycling zone layouts 4200 | -9/Materials | Entered Storage 4202 | -9/Storage | Identified exit to Recycling 4203 | -9/Storage | Loaded intel: 3 trap records 5001 | -9/Storage | Build established: Scavenger-Mutant 5122 | -9/Storage | Repaired Lgt. Treads 5156 | -9/Storage | Repaired Imp. Treads 5183 | -9/Storage | Repaired Lgt. Armor Plating 5210 | -9/Storage | Repaired Lgt. Treads 5294 | -9/Storage | Core integrity fell below 50% 5581 | -9/Storage | Met a pair of Derelict thieves 5661 | -9/Storage | Used back door to open Recycling access 5669 | -9/Storage | Entered Recycling 5670 | -9/Recycling | Identified exit to Factory 5817 | -9/Recycling | Build established: Mutant 6432 | -9/Recycling | Scanned before Scraplab entrance 6491 | -9/Recycling | Learned Materials trap positions 6699 | -9/Recycling | Identified exit to Scraptown 6763 | -9/Recycling | Learned Materials emergency access door positions 6813 | -9/Recycling | Entered Scraplab 6829 | -9/Recycling | Entered Scraptown 7040 | -9/Scraptown | Heard Great Nut preacher, LISTEN AND RECITE! 7047 | -9/Scraptown | Visited Shadow of the Wyrm 7076 | -9/Scraptown | Visited UFD Registry 7080 | -9/Scraptown | Registered with UFD as "Rusttank" 7114 | -9/Scraptown | Visited Curators Association 7136 | -9/Scraptown | Visited Junk Cannon Lab 7194 | -9/Scraptown | Visited Observation Area 7458 | -9/Scraptown | Visited Analyses Database 7492 | -9/Scraptown | Visited Science Testing Area 7535 | -9/Scraptown | Visited Junk Repository 7616 | -9/Scraptown | Visited DA-N13 Charitable Foundation 7631 | -9/Scraptown | Found DCF Scrap (31 items) 7671 | -9/Scraptown | Visited Junk Repository 7758 | -9/Scraptown | Visited Chapter 10 7961 | -9/Scraptown | Discovered new exit (range 3) 8062 | -9/Scraptown | Met Optimus 8062 | -9/Scraptown | Accepted into 0bPrime 8175 | -9/Scraptown | Entered Factory 8175 | -6/Factory | Evolved 6 slots: Power x1, Propulsion x1, Utility x4 8363 | -6/Factory | Watched by a mysterious "MATRIX" hacker 8480 | -6/Factory | Discovered new exit (range 3) 8483 | -6/Factory | Identified exit to Lower Caves 8509 | -6/Factory | Build established: Assassin 8612 | -6/Factory | Entered Lower Caves 8612 | -6/Lower Caves | Accompanied by 1 ally 8895 | -6/Lower Caves | Lost 4 parts (1n3u) 9179 | -6/Lower Caves | Learned 4 Factory zone layouts 9198 | -6/Lower Caves | Discovered new exit (range 6) 9205 | -6/Lower Caves | Identified exit to Lower Caves 9508 | -6/Lower Caves | Attracted the attention of an 0b10 outpost 9648 | -6/Lower Caves | Lost 3 parts (1n2u) 9801 | -6/Lower Caves | Entered another Lower Caves area 9801 | -6/Lower Caves | Accompanied by 2 allies 9851 | -6/Lower Caves | Build established: Mutant 9956 | -6/Lower Caves | Discovered new exit (range 16) 9980 | -6/Lower Caves | Entered Factory 9980 | -5/Factory | Evolved 2 slots: Utility x2 10236 | -5/Factory | Lost 4 parts (3n1w) 10473 | -5/Factory | Lost 6 parts (1p5n) 10529 | -5/Factory | Build established: Hacker-Mutant 10688 | -5/Factory | Lost 3 parts (2n1u) 10739 | -5/Factory | Discovered new exit (range 10) 10787 | -5/Factory | Loaded intel: 8 recycling unit locations 10806 | -5/Factory | Identified exit to Factory 10807 | -5/Factory | Entered another Factory area 10807 | -4/Factory | Evolved 2 slots: Utility x2 10812 | -4/Factory | Identified exit to Upper Caves 10812 | -4/Factory | Identified exit to Extension 11010 | -4/Factory | Scrapoids reinforcements arrived? 11093 | -4/Factory | Lost 4 allies 11181 | -4/Factory | Found Prototype Device 11181 | -4/Factory | Identified Active Sensor Suite 11239 | -4/Factory | Found Scrap Suit 11372 | -4/Factory | Lost 3 parts (1p2u) 11486 | -4/Factory | Build established: Scavenger-Skirmisher 11507 | -4/Factory | Entered Extension 11585 | -4/Extension | Rescued a captive Derelict 11935 | -4/Extension | Build established: Scavenger-Mutant 12033 | -4/Extension | Lost 3 allies 12072 | -4/Extension | Rescued a captive Derelict 12073 | -4/Extension | Rescued a captive Derelict 12189 | -4/Extension | Rescued a captive Derelict 12190 | -4/Extension | Rescued a captive Derelict 12454 | -4/Extension | Spotted B-86 Titan 12512 | -4/Extension | Allies destroyed B-86 Titan 12523 | -4/Extension | Spotted B-86 Titan 12557 | -4/Extension | Destroyed B-86 Titan 12582 | -4/Extension | Lost 3 parts (1p1n1u) 12585 | -4/Extension | Discovered new exit (range 3) 12586 | -4/Extension | Identified exit to Research 12982 | -4/Extension | Identified exit to Cetus 13003 | -4/Extension | Discovered exit to Research (range 10) 13043 | -4/Extension | Entered Cetus 13043 | -4/Cetus | Accompanied by 7 allies 13057 | -4/Cetus | Spotted Cetus Guard 13057 | -4/Cetus | Spotted Cetus Guard 13060 | -4/Cetus | Spotted Cetus Guard 13065 | -4/Cetus | Allies destroyed Cetus Guard 13069 | -4/Cetus | Spotted Cetus Guard 13070 | -4/Cetus | Destroyed Cetus Guard 13078 | -4/Cetus | Core integrity fell below 50% 13090 | -4/Cetus | Allies destroyed Cetus Guard 13091 | -4/Cetus | Destroyed Cetus Guard 13112 | -4/Cetus | Lost 3 allies 13240 | -4/Cetus | Discovered new exit (range 20) 13265 | -4/Cetus | Spotted Cetus Guard 13266 | -4/Cetus | Spotted Cetus Guard 13268 | -4/Cetus | Spotted Cetus Guard 13268 | -4/Cetus | Spotted Cetus Guard 13287 | -4/Cetus | Destroyed Cetus Guard 13303 | -4/Cetus | Destroyed Cetus Guard 13303 | -4/Cetus | Destroyed Cetus Guard 13321 | -4/Cetus | Destroyed Cetus Guard 13325 | -4/Cetus | Lost 4 allies 13330 | -4/Cetus | Discovered exit to Research (range 19) 13367 | -4/Cetus | Met Revision 17 13440 | -4/Cetus | Identified exit to Archives 13442 | -4/Cetus | Entered Archives 13465 | -4/Archives | Met Zhirov 13469 | -4/Archives | Discovered new exit (range 20) 13471 | -4/Archives | Reinforcements dispatched to Archives 13498 | -4/Archives | Identified exit to Hub_04(d) 13516 | -4/Archives | Reinforcements dispatched to Archives 13525 | -4/Archives | Entered Hub_04(d) 13909 | -4/Hub_04(d) | Discovered exit to Research (range 11) 14010 | -4/Hub_04(d) | Network Hub disabled 14025 | -4/Hub_04(d) | First assault squad dispatched 14047 | -4/Hub_04(d) | Spotted Lightning 14047 | -4/Hub_04(d) | Entered Research 14047 | -3/Research | Evolved 2 slots: Utility x1, Weapon x1 14247 | -3/Research | Revision forces began assault on 0b10 14267 | -3/Research | Met up with Revision 17++ 14339 | -3/Research | Build established: Scavenger-Tank 14415 | -3/Research | Fabricated Structural Scanner (x2) 14543 | -3/Research | Identified exit to Armory 14543 | -3/Research | Identified exit to Testing 14710 | -3/Research | Build established: Scavenger-Skirmisher 14747 | -3/Research | Research terminal network offline 14967 | -3/Research | Spotted B-86 Titan 15291 | -3/Research | Build established: Scavenger-Tank 16057 | -3/Research | Entered Testing 16235 | -3/Testing | Found Prototype Leg 16244 | -3/Testing | Identified Myomer Exoskeleton 16330 | -3/Testing | Found Prototype Energy Cannon 16527 | -3/Testing | Found Prototype Ballistic Cannon 16527 | -3/Testing | Identified Perforator 16533 | -3/Testing | Identified Hpw. Disruptor Cannon 16572 | -3/Testing | Found Prototype Device 16572 | -3/Testing | Identified Exp. ECM Suite 17006 | -3/Testing | Core integrity fell below 50% 17007 | -3/Testing | Spotted Striker 17010 | -3/Testing | Spotted Striker 17014 | -3/Testing | Spotted Alpha 7 17018 | -3/Testing | Stole the SGEMP Prototype 17028 | -3/Testing | Core integrity fell below 20% 17034 | -3/Testing | Destroyed by Striker with Plasma Lance Last Messages --------------- 17013_ Knocked back. 17015_ Acquired 2 matter. 17015_ Penetrated by Slug. 17015_ Slug penetrates Machine. 17017_ Dropped Hpw. Disruptor Cannon. 17018_ Acquired SGEMP Prototype. 17018_ Slug penetrates C-55 Analyst. 17019_ Knocked back. 17021_ Penetrated by Slug. 17028_ Slug penetrates Striker. 17028_ Penetrated by Slug. 17032_ Connecting with Door Terminal... >>Open(Door) Sealed Heavy Doors opened. 17032_ Knocked back. 17033_ Acquired 4 matter. 17033_ C-55 Analyst: "UNAUTHORIZED LAB ACCESS." 17033_ Door Terminal disabled. 17034_ Connecting with Regeneration Lab... [Achievement: 20k Club] Map ----- +----------------------------------------------------+ | | | | | | | | | | | | | | | | | | | | | | | | | | | | | | | | | | | | | | | | | | | | | ?????????????????????????????????????????????????? | | ????????????????????#######??????????????????????? | | ????????????????????# "#??????????????????????? | | ????????????????????# K@"??????????????????????? | | ######??????????????# c"??????????????????????? | | """""#??????????????# #T"??????????????????????? | | " """#??????????????# ####??????????????????????? | | ] ""####????????####gK#?????????????????????????? | | " ## ##########"##g ###########???????????????? | | "% / p #??????????? | | % / % #??????????? | | ## #"##### ###+#+############# #??????????? | | "" ######???# #? ??????????????????????????? | | ### #????????# #? !????????????????????????? | | ######????????# # "" ???????????????????????? | | ## ######?????# #""" #??????????????????????? | | ## #######????#% #"" #??????????????????????? | | # ####???# #""F" #??????????????????????? | | ## ####### #"""" #??????????????????????? | | "###### # """ #??????????????????????? | | # # ### # #??????????????????????? | | #=#### ### ##########??????????????????????? | | #%! #] ### !#| *##?????????????????????? | | !%!*%*[!%= != $#$ ##?????????????????????? | | !!% !!=* = ! "%""" ##?????????????????????? | | = !=!## *##*$#$""" #??????????????????????? | | [ !% ## ## # """ #??????????????????????? | | ] # ## #?""" !#??????????????????????? | +----------------------------------------------------+ Best States ------------- Heat Dissipation 62 Coolant Potential 120 Energy Generation 45 Energy Capacity 600 Matter Stores 300 Matter Capacity 300 Sight Range 23 Robot Scan Range 20 Terrain Scan Range 16 Terrain Scan Density 85 ECM Strength 2 Jamming Range 14 Cloak Strength 3 Corruption Block 20 Armor Coverage 600 Resistance: KI 25 Resistance: TH 30 Weapon Shielding 33 Evasion (%) 70 Target Analysis 11 Core Analysis 6 Recoil Reduction 5 Energy Filtering 50 Salvage Targeting 4 Offensive Hacking 14 Defensive Hacking 20 Item Schematics ----------------- Hacking Suite | -9/Materials | Scanalyzed Lgt. Armor Plating | -9/Materials | Scanalyzed Sml. Storage Unit | -9/Materials | Scanalyzed Structural Scanner | -9/Materials | Scanalyzed Terrain Scanner | -9/Materials | Scanalyzed Grenade Launcher | -9/Materials | Scanalyzed Aluminum Leg | -9/Materials | Scanalyzed Autogun | -9/Materials | Scanalyzed Mining Laser | -9/Materials | Scanalyzed Imp. Power Shielding | -9/Recycling | Hacked Nuclear Pulse Thruster | -6/Factory | Scanalyzed Graviton Reactor | -3/Testing | Archive Robot Schematics ------------------ E-15 Imp | -3/Testing | Archive Fabricated ------------ Structural Scanner | x2 | -3/Research Repaired ---------- Autogun | 56% | -9/Materials Lgt. Treads | 66% | -9/Materials Lgt. Treads | 10% | -9/Storage Imp. Treads | 15% | -9/Storage Lgt. Armor Plating | 47% | -9/Storage Lgt. Treads | 67% | -9/Storage Studied --------- Grenade Launcher | -9/Materials | Hacked Autogun | -9/Materials | Hacked Mining Laser | -9/Materials | Hacked Aluminum Leg | -9/Materials | Hacked Airjet | -6/Factory | Hacked Linear Gravjet | -5/Factory | Hacked Alien Tech Used ----------------- None Achievements -------------- 20k Club I Laugh At Your Crits It Was An Accident, I Swear No Room For Error Ooh, Shiny! Revising The Future Revolutionary Research Rockin' Loadout Some Acronyms Are Better Than Others Challenges ------------ None Game ------ Seed ModifiedIntegratedGuard Manual? 0 Play Time 03:48:56 Cumulative 84.8 hours Start 2026.06.28 @ 05:42:50 End 2026.06.28 @ 14:48:05 Sessions 3 Manual Loads 0 Difficulty Rogue Special Mode None Game No. 95 Rogue 88 Adventurer 0 Explorer 7 Win Type - Total 1 Types 1/0/0/0/0/0/0/0/0/0 Lore% 24 Gallery% 35 Achievement% 30 Wizard Run 0 Options --------- Layout 1 ASCII 0 Keyboard 0 Movement Numpad Keybinds 0 Fullscreen 2 Font 32/SmallcapsGlow Map View 50x35 Zoom Use 0% Tactical HUD 1 Map Filters NONE Filters NONE Steam 1 RUN: 2b6fc0b0-43b9-4a72-a02e-27ee5b48c4ae